[Event "FIDE World Rapid Chess Championship 2021"]
[White "Mastrovasilis, Dimitrios"]
[Black "Petrosian, Tigran L."]
[WhiteFideId "4202694"]
[BlackFideId "13301616"]
[WhiteElo "2534"]
[BlackElo "2621"]
[Result "0-1"]
[Round "10"]
[TimeControl "900+10"]
[Date "2021.12.28"]
[WhiteClock "0:00:00"]
[BlackClock "0:00:14"]

1. e4 {[%clk 0:15:00]}  g6 {[%clk 0:15:00]} 2. d4 {[%clk 0:15:00]}  Bg7 {[%clk 0:14:59]} 3. Nf3 {[%clk 0:15:07]}  c6 {[%clk 0:14:59]} 4. Bc4 {[%clk 0:15:07]}  d5 {[%clk 0:14:59]} 5. Bb3 {[%clk 0:15:07]}  Bg4 {[%clk 0:14:59]} 6. h3 {[%clk 0:13:45]}  Bxf3 {[%clk 0:13:40]} 7. Qxf3 {[%clk 0:13:45]}  e6 {[%clk 0:13:40]} 8. c3 {[%clk 0:13:45]}  Nf6 {[%clk 0:13:40]} 9. Nd2 {[%clk 0:13:45]}  O-O {[%clk 0:13:40]} 10. O-O {[%clk 0:13:45]}  b5 {[%clk 0:12:50]} 11. a4 {[%clk 0:13:33]}  Qa5 {[%clk 0:06:24]} 12. Bc2 {[%clk 0:13:33]}  b4 {[%clk 0:06:24]} 13. Nb3 {[%clk 0:10:37]}  Qb6 {[%clk 0:05:54]} 14. a5 {[%clk 0:10:37]}  Qb5 {[%clk 0:05:54]} 15. e5 {[%clk 0:10:38]}  Nfd7 {[%clk 0:01:48]} 16. Bd3 {[%clk 0:06:30]}  Qb7 {[%clk 0:02:06]} 17. a6 {[%clk 0:06:30]}  Qb6 {[%clk 0:02:06]} 18. c4 {[%clk 0:06:30]}  f6 {[%clk 0:02:06]} 19. exf6 {[%clk 0:06:30]}  Nxf6 {[%clk 0:02:06]} 20. Qe2 {[%clk 0:05:24]}  Nbd7 {[%clk 0:01:17]} 21. Qxe6+ {[%clk 0:05:24]}  Kh8 {[%clk 0:01:17]} 22. c5 {[%clk 0:04:09]}  Qc7 {[%clk 0:01:04]} 23. Qd6 {[%clk 0:04:09]}  Qxd6 {[%clk 0:01:04]} 24. cxd6 {[%clk 0:04:09]}  Ne8 {[%clk 0:01:04]} 25. Bd2 {[%clk 0:04:09]}  Nxd6 {[%clk 0:01:04]} 26. Rac1 {[%clk 0:01:59]}  c5 {[%clk 0:01:00]} 27. Nxc5 {[%clk 0:00:43]}  Nxc5 {[%clk 0:00:17]} 28. dxc5 {[%clk 0:00:43]}  Nf5 {[%clk 0:00:17]} 29. Bxb4 {[%clk 0:00:43]}  Rab8 {[%clk 0:01:06]} 30. Ba3 {[%clk 0:00:23]}  Nd4 {[%clk 0:01:06]} 31. b4 {[%clk 0:00:23]}  Rfc8 {[%clk 0:01:06]} 32. Rfe1 {[%clk 0:00:23]}  Rc7 {[%clk 0:01:06]} 33. b5 {[%clk 0:00:23]}  Nb3 {[%clk 0:01:06]} 34. c6 {[%clk 0:00:23]}  Nxc1 {[%clk 0:01:06]} 35. Bxc1 {[%clk 0:00:23]}  Rf7 {[%clk 0:01:06]} 36. Be3 {[%clk 0:00:23]}  d4 {[%clk 0:01:06]} 37. Bg5 {[%clk 0:00:23]}  Bf8 {[%clk 0:01:06]} 38. Bc4 {[%clk 0:00:23]}  Rf5 {[%clk 0:01:06]} 39. c7 {[%clk 0:00:23]}  Rc8 {[%clk 0:01:06]} 40. Bd8 {[%clk 0:00:23]}  Rc5 {[%clk 0:01:06]} 41. Be6 {[%clk 0:00:23]}  R8xc7 {[%clk 0:01:06]} 42. Bxc7 {[%clk 0:00:23]}  Rxc7 {[%clk 0:01:06]} 43. b6 {[%clk 0:00:23]}  axb6 {[%clk 0:01:06]} 44. Bd5 {[%clk 0:00:23]}  d3 {[%clk 0:01:06]} 45. Rd1 {[%clk 0:00:23]}  b5 {[%clk 0:01:06]} 46. Rxd3 {[%clk 0:00:23]}  Rc1+ {[%clk 0:01:06]} 47. Kh2 {[%clk 0:00:23]}  Bc5 {[%clk 0:01:06]} 48. Rf3 {[%clk 0:00:23]}  Ra1 {[%clk 0:01:06]} 49. Bb7 {[%clk 0:00:23]}  b4 {[%clk 0:01:06]} 50. g3 {[%clk 0:00:13]}  Ra2 {[%clk 0:01:52]} 51. Kg2 {[%clk 0:00:13]}  b3 {[%clk 0:01:52]} 52. Rxb3 {[%clk 0:00:13]}  Rxf2+ {[%clk 0:01:52]} 53. Kh1 {[%clk 0:00:13]}  Rf1+ {[%clk 0:01:52]} 54. Kh2 {[%clk 0:00:13]}  Rf2+ {[%clk 0:01:52]} 55. Kh1 {[%clk 0:00:13]}  Rf1+ {[%clk 0:01:52]} 56. Kh2 {[%clk 0:00:13]}  Rf2+ {[%clk 0:01:52]} 57. Bg2 {[%clk 0:00:13]}  Ra2 {[%clk 0:01:52]} 58. Rc3 {[%clk 0:00:13]}  Bb6 {[%clk 0:01:52]} 59. Rc6 {[%clk 0:00:13]}  Bd4 {[%clk 0:01:52]} 60. h4 {[%clk 0:00:13]}  Ra3 {[%clk 0:01:52]} 61. g4 {[%clk 0:00:13]}  Be5+ {[%clk 0:01:52]} 62. Kg1 {[%clk 0:00:13]}  Kg7 {[%clk 0:01:52]} 63. g5 {[%clk 0:00:13]}  Ra4 {[%clk 0:00:14]} 64. Bd5 {[%clk 0:00:00]}  Bd4+ {[%clk 0:00:14]} 65. Kg2 {[%clk 0:00:00]}  Kf8 {[%clk 0:00:14]} 66. Kf3 {[%clk 0:00:00]}  Bg1 {[%clk 0:00:14]} 67. Bc4 {[%clk 0:00:00]}  Ke7 {[%clk 0:00:14]} 68. Ke4 {[%clk 0:00:00]}  Kd7 {[%clk 0:00:14]} 69. Kd5 {[%clk 0:00:00]}  Ra5+ {[%clk 0:00:14]} 0-1


[Site "http://www.Chess.com"]

[Event "FIDE World Rapid Chess Championship 2021"]
[White "Narayanan.S.L, "]
[Black "Heimann, Andreas"]
[WhiteFideId "5058422"]
[BlackFideId "24624632"]
[WhiteElo "2482"]
[BlackElo "2616"]
[Result "1/2-1/2"]
[Round "10"]
[TimeControl "900+10"]
[Date "2021.12.28"]
[WhiteClock "0:00:40"]
[BlackClock "0:01:56"]

1. e4 {[%clk 0:15:00]}  e5 {[%clk 0:15:00]} 2. Nf3 {[%clk 0:15:00]}  Nc6 {[%clk 0:15:00]} 3. Bc4 {[%clk 0:15:00]}  Nf6 {[%clk 0:15:50]} 4. d3 {[%clk 0:15:47]}  Bc5 {[%clk 0:15:50]} 5. Nc3 {[%clk 0:15:47]}  d6 {[%clk 0:15:50]} 6. Na4 {[%clk 0:15:47]}  Bb6 {[%clk 0:15:50]} 7. a3 {[%clk 0:15:47]}  h6 {[%clk 0:15:50]} 8. O-O {[%clk 0:15:47]}  O-O {[%clk 0:15:50]} 9. Re1 {[%clk 0:15:47]}  Be6 {[%clk 0:15:50]} 10. Nxb6 {[%clk 0:15:47]}  axb6 {[%clk 0:15:50]} 11. Bxe6 {[%clk 0:15:47]}  fxe6 {[%clk 0:15:50]} 12. c3 {[%clk 0:15:47]}  Qe8 {[%clk 0:15:17]} 13. d4 {[%clk 0:13:13]}  exd4 {[%clk 0:15:17]} 14. cxd4 {[%clk 0:13:13]}  Qh5 {[%clk 0:15:17]} 15. h3 {[%clk 0:11:03]}  d5 {[%clk 0:15:18]} 16. exd5 {[%clk 0:11:03]}  exd5 {[%clk 0:15:18]} 17. Bf4 {[%clk 0:10:41]}  Qf7 {[%clk 0:13:08]} 18. Ne5 {[%clk 0:10:41]}  Nxe5 {[%clk 0:13:08]} 19. Bxe5 {[%clk 0:10:41]}  Rae8 {[%clk 0:13:08]} 20. Qb3 {[%clk 0:09:59]}  Ne4 {[%clk 0:12:28]} 21. f3 {[%clk 0:09:59]}  Nd2 {[%clk 0:12:28]} 22. Qc3 {[%clk 0:07:00]}  Nc4 {[%clk 0:12:41]} 23. Bg3 {[%clk 0:07:00]}  Qd7 {[%clk 0:12:41]} 24. b3 {[%clk 0:07:00]}  Nd6 {[%clk 0:12:41]} 25. a4 {[%clk 0:07:00]}  c6 {[%clk 0:11:50]} 26. Qb4 {[%clk 0:06:35]}  Nf5 {[%clk 0:11:50]} 27. Bf2 {[%clk 0:06:35]}  Qc7 {[%clk 0:11:50]} 28. Rxe8 {[%clk 0:06:35]}  Rxe8 {[%clk 0:11:50]} 29. Re1 {[%clk 0:06:35]}  Rxe1+ {[%clk 0:11:02]} 30. Qxe1 {[%clk 0:05:23]}  Kf7 {[%clk 0:11:02]} 31. g4 {[%clk 0:05:23]}  Ne7 {[%clk 0:11:02]} 32. Bg3 {[%clk 0:05:23]}  Qd7 {[%clk 0:11:02]} 33. Qb4 {[%clk 0:05:23]}  Nc8 {[%clk 0:08:38]} 34. Kf2 {[%clk 0:05:47]}  Qd8 {[%clk 0:08:38]} 35. Qd2 {[%clk 0:05:47]}  c5 {[%clk 0:06:27]} 36. Qf4+ {[%clk 0:05:41]}  Qf6 {[%clk 0:06:27]} 37. Qxf6+ {[%clk 0:05:23]}  Kxf6 {[%clk 0:04:40]} 38. Ke3 {[%clk 0:05:23]}  Ke6 {[%clk 0:04:40]} 39. Bc7 {[%clk 0:05:23]}  g6 {[%clk 0:04:40]} 40. a5 {[%clk 0:04:47]}  cxd4+ {[%clk 0:03:38]} 41. Kxd4 {[%clk 0:02:32]}  bxa5 {[%clk 0:03:38]} 42. Bxa5 {[%clk 0:02:32]}  b6 {[%clk 0:03:38]} 43. Bd2 {[%clk 0:02:32]}  h5 {[%clk 0:03:38]} 44. Ke3 {[%clk 0:00:40]}  Ne7 {[%clk 0:01:56]} 45. Kf4 {[%clk 0:00:40]}  Nc6 {[%clk 0:01:56]} 46. Be1 {[%clk 0:00:40]}  Nd4 {[%clk 0:01:56]} 47. Bf2 {[%clk 0:00:40]}  Nxb3 {[%clk 0:01:56]} 48. Bxb6 {[%clk 0:00:40]}  d4 {[%clk 0:01:56]} 49. gxh5 {[%clk 0:00:40]}  gxh5 {[%clk 0:01:56]} 50. Bxd4 {[%clk 0:00:40]}  Nxd4 {[%clk 0:01:56]} 51. Kg5 {[%clk 0:00:40]}  Nxf3+ {[%clk 0:01:56]} 52. Kxh5 {[%clk 0:00:40]}  Kf5 {[%clk 0:01:56]} 53. h4 {[%clk 0:00:40]}  Nxh4 {[%clk 0:01:56]} 54. Kxh4 {[%clk 0:00:40]}  Ke5 {[%clk 0:01:56]} 1/2-1/2


[Site "http://www.Chess.com"]

[Event "FIDE World Rapid Chess Championship 2021"]
[White "Dudin, Gleb"]
[Black "Efimenko, Zahar"]
[WhiteFideId "34184934"]
[BlackFideId "14107201"]
[WhiteElo "2247"]
[BlackElo "2609"]
[Result "1/2-1/2"]
[Round "10"]
[TimeControl "900+10"]
[Date "2021.12.28"]
[WhiteClock "0:00:21"]
[BlackClock "0:00:33"]

1. d4 {[%clk 0:15:00]}  Nf6 {[%clk 0:14:20]} 2. c4 {[%clk 0:14:52]}  e6 {[%clk 0:14:20]} 3. Nf3 {[%clk 0:14:52]}  b6 {[%clk 0:14:20]} 4. a3 {[%clk 0:14:52]}  Bb7 {[%clk 0:14:20]} 5. Nc3 {[%clk 0:14:52]}  Ne4 {[%clk 0:14:20]} 6. Nxe4 {[%clk 0:14:52]}  Bxe4 {[%clk 0:14:20]} 7. Bf4 {[%clk 0:14:52]}  Be7 {[%clk 0:14:20]} 8. e3 {[%clk 0:14:52]}  O-O {[%clk 0:13:00]} 9. Bd3 {[%clk 0:14:49]}  Bxd3 {[%clk 0:13:00]} 10. Qxd3 {[%clk 0:14:49]}  d6 {[%clk 0:13:00]} 11. O-O {[%clk 0:14:49]}  Nd7 {[%clk 0:13:00]} 12. Bg3 {[%clk 0:14:49]}  a5 {[%clk 0:13:00]} 13. b4 {[%clk 0:14:28]}  Qc8 {[%clk 0:13:05]} 14. Nd2 {[%clk 0:14:28]}  Qb7 {[%clk 0:12:47]} 15. h3 {[%clk 0:11:18]}  h6 {[%clk 0:12:47]} 16. Rfc1 {[%clk 0:08:13]}  axb4 {[%clk 0:12:45]} 17. axb4 {[%clk 0:07:18]}  Ra7 {[%clk 0:12:45]} 18. Ne4 {[%clk 0:07:24]}  Rxa1 {[%clk 0:05:54]} 19. Rxa1 {[%clk 0:03:06]}  Ra8 {[%clk 0:05:54]} 20. Rb1 {[%clk 0:03:06]}  Nf6 {[%clk 0:03:09]} 21. Nxf6+ {[%clk 0:01:14]}  Bxf6 {[%clk 0:03:09]} 22. c5 {[%clk 0:01:14]}  bxc5 {[%clk 0:03:09]} 23. bxc5 {[%clk 0:01:14]}  Qd5 {[%clk 0:01:33]} 24. Rc1 {[%clk 0:00:18]}  e5 {[%clk 0:01:33]} 25. cxd6 {[%clk 0:00:18]}  cxd6 {[%clk 0:01:33]} 26. Qf5 {[%clk 0:00:18]}  Qa5 {[%clk 0:00:39]} 27. dxe5 {[%clk 0:00:23]}  dxe5 {[%clk 0:00:39]} 28. Kh2 {[%clk 0:00:23]}  Re8 {[%clk 0:00:39]} 29. Rc6 {[%clk 0:00:23]}  Qd8 {[%clk 0:00:39]} 30. Ra6 {[%clk 0:00:21]}  Qe7 {[%clk 0:00:33]} 31. Qe4 {[%clk 0:00:21]}  g6 {[%clk 0:00:33]} 32. Qd5 {[%clk 0:00:21]}  Rd8 {[%clk 0:00:33]} 33. Qa5 {[%clk 0:00:21]}  Re8 {[%clk 0:00:33]} 34. Qa2 {[%clk 0:00:21]}  e4 {[%clk 0:00:33]} 35. Qa4 {[%clk 0:00:21]}  Be5 {[%clk 0:00:33]} 36. Qc4 {[%clk 0:00:21]}  Bxg3+ {[%clk 0:00:33]} 37. fxg3 {[%clk 0:00:21]}  Kg7 {[%clk 0:00:33]} 38. Qd4+ {[%clk 0:00:21]} 1/2-1/2


[Site "http://www.Chess.com"]

[Event "FIDE World Rapid Chess Championship 2021"]
[White "Adly, Ahmed"]
[Black "Fridman, Daniel"]
[WhiteFideId "10601619"]
[BlackFideId "11600454"]
[WhiteElo "2597"]
[BlackElo "2542"]
[Result "1/2-1/2"]
[Round "10"]
[TimeControl "900+10"]
[Date "2021.12.28"]
[WhiteClock "0:00:21"]
[BlackClock "0:00:32"]

1. Nf3 {[%clk 0:15:00]}  d5 {[%clk 0:15:00]} 2. g3 {[%clk 0:15:00]}  Nf6 {[%clk 0:15:00]} 3. Bg2 {[%clk 0:15:00]}  c5 {[%clk 0:15:00]} 4. O-O {[%clk 0:15:00]}  Nc6 {[%clk 0:16:33]} 5. d4 {[%clk 0:15:36]}  e6 {[%clk 0:16:33]} 6. c4 {[%clk 0:15:36]}  dxc4 {[%clk 0:16:33]} 7. Ne5 {[%clk 0:15:36]}  Bd7 {[%clk 0:16:33]} 8. Na3 {[%clk 0:15:36]}  cxd4 {[%clk 0:16:33]} 9. Naxc4 {[%clk 0:15:36]}  Be7 {[%clk 0:16:33]} 10. Qb3 {[%clk 0:15:36]}  Qc7 {[%clk 0:16:33]} 11. Nxc6 {[%clk 0:15:36]}  Bxc6 {[%clk 0:16:33]} 12. Bf4 {[%clk 0:15:36]}  Qd8 {[%clk 0:16:33]} 13. Bxc6+ {[%clk 0:15:36]}  bxc6 {[%clk 0:16:33]} 14. Rfd1 {[%clk 0:15:36]}  c5 {[%clk 0:16:42]} 15. Be5 {[%clk 0:15:04]}  O-O {[%clk 0:09:35]} 16. e3 {[%clk 0:11:51]}  Nd5 {[%clk 0:09:35]} 17. exd4 {[%clk 0:11:51]}  f6 {[%clk 0:09:35]} 18. Bf4 {[%clk 0:11:51]}  Nxf4 {[%clk 0:09:35]} 19. gxf4 {[%clk 0:11:51]}  cxd4 {[%clk 0:09:35]} 20. Ne3 {[%clk 0:11:51]}  Qd7 {[%clk 0:09:35]} 21. Nc2 {[%clk 0:09:29]}  Rab8 {[%clk 0:09:22]} 22. Rxd4 {[%clk 0:06:38]}  Qc6 {[%clk 0:09:22]} 23. Qc4 {[%clk 0:06:34]}  Qxc4 {[%clk 0:06:48]} 24. Rxc4 {[%clk 0:03:32]}  Rxb2 {[%clk 0:06:48]} 25. Nd4 {[%clk 0:03:32]}  Rd8 {[%clk 0:06:48]} 26. Nxe6 {[%clk 0:03:32]}  Rdd2 {[%clk 0:03:45]} 27. Rc7 {[%clk 0:04:44]}  Kf7 {[%clk 0:03:45]} 28. Nxg7 {[%clk 0:03:22]}  Kxg7 {[%clk 0:02:32]} 29. Rxe7+ {[%clk 0:03:22]}  Kh6 {[%clk 0:02:32]} 30. Rf1 {[%clk 0:01:22]}  Rxa2 {[%clk 0:02:01]} 31. Kg2 {[%clk 0:01:22]}  Rd4 {[%clk 0:01:16]} 32. Kg3 {[%clk 0:00:33]}  Ra3+ {[%clk 0:01:18]} 33. f3 {[%clk 0:00:21]}  Ra2 {[%clk 0:01:18]} 34. Rf2 {[%clk 0:00:21]}  Rxf2 {[%clk 0:01:18]} 35. Kxf2 {[%clk 0:00:21]}  a5 {[%clk 0:01:18]} 36. Ra7 {[%clk 0:00:21]}  Rd5 {[%clk 0:01:18]} 37. Kg3 {[%clk 0:00:21]}  Kg6 {[%clk 0:01:18]} 38. Ra6 {[%clk 0:00:21]}  h5 {[%clk 0:01:18]} 39. Ra8 {[%clk 0:00:21]}  Kf7 {[%clk 0:01:18]} 40. Ra6 {[%clk 0:00:21]}  Ke7 {[%clk 0:01:18]} 41. h4 {[%clk 0:00:21]}  f5 {[%clk 0:01:18]} 42. Rh6 {[%clk 0:00:21]}  a4 {[%clk 0:01:18]} 43. Ra6 {[%clk 0:00:21]}  Rd4 {[%clk 0:01:18]} 44. Ra5 {[%clk 0:00:21]}  Ke6 {[%clk 0:01:18]} 45. Re5+ {[%clk 0:00:21]}  Kf6 {[%clk 0:01:18]} 46. Ra5 {[%clk 0:00:21]}  Rc4 {[%clk 0:01:18]} 47. Ra6+ {[%clk 0:00:21]}  Ke7 {[%clk 0:01:18]} 48. Ra5 {[%clk 0:00:21]}  Ke6 {[%clk 0:01:18]} 49. Re5+ {[%clk 0:00:21]}  Kf6 {[%clk 0:01:18]} 50. Ra5 {[%clk 0:00:21]}  Rd4 {[%clk 0:01:18]} 51. Ra6+ {[%clk 0:00:21]}  Ke7 {[%clk 0:01:18]} 52. Ra5 {[%clk 0:00:21]}  Ke6 {[%clk 0:01:18]} 53. Re5+ {[%clk 0:00:21]}  Kf6 {[%clk 0:00:32]} 1/2-1/2


[Site "http://www.Chess.com"]

[Event "FIDE World Rapid Chess Championship 2021"]
[White "Socko, Bartosz"]
[Black "Sargsyan, Shant"]
[WhiteFideId "1107038"]
[BlackFideId "13306766"]
[WhiteElo "2562"]
[BlackElo "2344"]
[Result "0-1"]
[Round "10"]
[TimeControl "900+10"]
[Date "2021.12.28"]
[WhiteClock "0:00:22"]
[BlackClock "0:00:47"]

1. d4 {[%clk 0:15:00]}  Nf6 {[%clk 0:15:59]} 2. c4 {[%clk 0:15:22]}  e6 {[%clk 0:15:59]} 3. g3 {[%clk 0:15:22]}  d5 {[%clk 0:15:59]} 4. Bg2 {[%clk 0:15:22]}  Bb4+ {[%clk 0:15:59]} 5. Nd2 {[%clk 0:15:22]}  O-O {[%clk 0:15:59]} 6. Nf3 {[%clk 0:15:22]}  dxc4 {[%clk 0:15:59]} 7. Qc2 {[%clk 0:15:22]}  a5 {[%clk 0:15:59]} 8. a3 {[%clk 0:15:22]}  Bxd2+ {[%clk 0:15:59]} 9. Bxd2 {[%clk 0:15:22]}  b5 {[%clk 0:15:59]} 10. a4 {[%clk 0:15:22]}  c6 {[%clk 0:15:59]} 11. O-O {[%clk 0:15:22]}  Bb7 {[%clk 0:15:59]} 12. Rfd1 {[%clk 0:15:22]}  Nbd7 {[%clk 0:14:06]} 13. b3 {[%clk 0:15:19]}  cxb3 {[%clk 0:14:06]} 14. Qxb3 {[%clk 0:15:19]}  b4 {[%clk 0:14:06]} 15. Rac1 {[%clk 0:15:19]}  Qe7 {[%clk 0:14:06]} 16. Bg5 {[%clk 0:14:16]}  c5 {[%clk 0:12:58]} 17. Bxf6 {[%clk 0:14:16]}  gxf6 {[%clk 0:12:58]} 18. Qe3 {[%clk 0:14:16]}  c4 {[%clk 0:11:46]} 19. Rxc4 {[%clk 0:14:01]}  Nb6 {[%clk 0:08:53]} 20. Rc5 {[%clk 0:14:01]}  Nd5 {[%clk 0:08:53]} 21. Qh6 {[%clk 0:14:01]}  Rfc8 {[%clk 0:08:53]} 22. Nd2 {[%clk 0:11:36]}  Rxc5 {[%clk 0:08:55]} 23. dxc5 {[%clk 0:07:39]}  Qf8 {[%clk 0:08:55]} 24. Qh4 {[%clk 0:04:28]}  Qxc5 {[%clk 0:03:22]} 25. Ne4 {[%clk 0:04:28]}  Qc2 {[%clk 0:03:22]} 26. Re1 {[%clk 0:04:28]}  Qb2 {[%clk 0:01:36]} 27. Nd6 {[%clk 0:04:12]}  Qd2 {[%clk 0:01:36]} 28. Rf1 {[%clk 0:04:12]}  Bc6 {[%clk 0:00:25]} 29. Ne4 {[%clk 0:02:44]}  Qb2 {[%clk 0:00:25]} 30. Rd1 {[%clk 0:02:44]}  f5 {[%clk 0:00:36]} 31. Rxd5 {[%clk 0:01:05]}  Qb1+ {[%clk 0:00:47]} 32. Bf1 {[%clk 0:00:22]}  Qxe4 {[%clk 0:00:47]} 33. Rd8+ {[%clk 0:00:22]}  Rxd8 {[%clk 0:00:47]} 34. Qxd8+ {[%clk 0:00:22]}  Kg7 {[%clk 0:00:47]} 35. Qg5+ {[%clk 0:00:22]}  Kf8 {[%clk 0:00:47]} 36. Qd8+ {[%clk 0:00:22]}  Be8 {[%clk 0:00:47]} 37. Qxa5 {[%clk 0:00:22]}  b3 {[%clk 0:00:47]} 38. Qc5+ {[%clk 0:00:22]}  Kg8 {[%clk 0:00:47]} 39. Qc8 {[%clk 0:00:22]}  b2 {[%clk 0:00:47]} 40. Qxe8+ {[%clk 0:00:22]}  Kg7 {[%clk 0:00:47]} 41. Qe7 {[%clk 0:00:22]}  h6 {[%clk 0:00:47]} 42. f3 {[%clk 0:00:22]}  Qd4+ {[%clk 0:00:47]} 43. Kg2 {[%clk 0:00:22]}  b1=Q {[%clk 0:00:47]} 0-1


[Site "http://www.Chess.com"]

[Event "FIDE World Rapid Chess Championship 2021"]
[White "Babazada, Khazar"]
[Black "Corrales Jimenez, Fidel"]
[WhiteFideId "13413554"]
[BlackFideId "3506690"]
[WhiteElo "2170"]
[BlackElo "2561"]
[Result "1-0"]
[Round "10"]
[TimeControl "900+10"]
[Date "2021.12.28"]
[WhiteClock "0:02:13"]
[BlackClock "0:02:34"]

1. e4 {[%clk 0:15:00]}  c5 {[%clk 0:15:00]} 2. Nf3 {[%clk 0:15:00]}  d6 {[%clk 0:15:00]} 3. d4 {[%clk 0:16:15]}  cxd4 {[%clk 0:15:47]} 4. Nxd4 {[%clk 0:16:15]}  Nf6 {[%clk 0:15:47]} 5. Nc3 {[%clk 0:16:15]}  a6 {[%clk 0:15:47]} 6. h3 {[%clk 0:16:15]}  e5 {[%clk 0:15:47]} 7. Nde2 {[%clk 0:16:15]}  h5 {[%clk 0:15:47]} 8. Bg5 {[%clk 0:16:15]}  Be7 {[%clk 0:15:47]} 9. Ng3 {[%clk 0:16:15]}  g6 {[%clk 0:12:12]} 10. Bd3 {[%clk 0:16:30]}  Be6 {[%clk 0:12:12]} 11. O-O {[%clk 0:16:30]}  Nbd7 {[%clk 0:12:12]} 12. Qd2 {[%clk 0:16:30]}  h4 {[%clk 0:12:12]} 13. Nge2 {[%clk 0:16:30]}  Nh5 {[%clk 0:12:12]} 14. Bxe7 {[%clk 0:15:50]}  Qxe7 {[%clk 0:11:18]} 15. Qe3 {[%clk 0:15:50]}  Rc8 {[%clk 0:10:57]} 16. Rad1 {[%clk 0:13:25]}  Kf8 {[%clk 0:10:57]} 17. f4 {[%clk 0:13:25]}  exf4 {[%clk 0:10:57]} 18. Nxf4 {[%clk 0:13:25]}  Nxf4 {[%clk 0:10:57]} 19. Qxf4 {[%clk 0:13:25]}  Kg7 {[%clk 0:10:53]} 20. Ne2 {[%clk 0:10:54]}  Ne5 {[%clk 0:10:53]} 21. Nd4 {[%clk 0:10:54]}  b5 {[%clk 0:08:59]} 22. Rf2 {[%clk 0:10:25]}  Bc4 {[%clk 0:08:43]} 23. Bxc4 {[%clk 0:10:06]}  Rxc4 {[%clk 0:04:56]} 24. c3 {[%clk 0:10:06]}  Rh5 {[%clk 0:04:56]} 25. Nc2 {[%clk 0:10:06]}  a5 {[%clk 0:05:10]} 26. Ne3 {[%clk 0:07:31]}  Rc5 {[%clk 0:05:10]} 27. Nd5 {[%clk 0:06:29]}  Qg5 {[%clk 0:02:46]} 28. Qxg5 {[%clk 0:06:29]}  Rxg5 {[%clk 0:02:46]} 29. Nf6 {[%clk 0:06:29]}  b4 {[%clk 0:02:16]} 30. cxb4 {[%clk 0:05:05]}  axb4 {[%clk 0:02:16]} 31. Rxd6 {[%clk 0:05:05]}  Rg3 {[%clk 0:02:16]} 32. Rd8 {[%clk 0:02:20]}  Nd3 {[%clk 0:02:13]} 33. Rg8+ {[%clk 0:02:20]}  Kh6 {[%clk 0:02:13]} 34. Rh8+ {[%clk 0:02:20]}  Kg5 {[%clk 0:02:13]} 35. Nh7+ {[%clk 0:02:20]}  Kh6 {[%clk 0:02:13]} 36. Rxf7 {[%clk 0:02:20]}  Rc1+ {[%clk 0:02:34]} 37. Kh2 {[%clk 0:02:13]}  Rc2 {[%clk 0:02:34]} 38. Nf8+ {[%clk 0:02:13]} 1-0


[Site "http://www.Chess.com"]

[Event "FIDE World Rapid Chess Championship 2021"]
[White "Ghaem Maghami, Ehsan"]
[Black "Suleymanli, Aydin"]
[WhiteFideId "12500739"]
[BlackFideId "13413937"]
[WhiteElo "2553"]
[BlackElo "2202"]
[Result "1-0"]
[Round "10"]
[TimeControl "900+10"]
[Date "2021.12.28"]
[WhiteClock "0:00:58"]
[BlackClock "0:01:12"]

1. d4 {[%clk 0:15:00]}  d5 {[%clk 0:14:07]} 2. Nf3 {[%clk 0:15:19]}  Nf6 {[%clk 0:14:07]} 3. c4 {[%clk 0:15:19]}  e6 {[%clk 0:14:07]} 4. Bg5 {[%clk 0:15:19]}  c6 {[%clk 0:14:07]} 5. Nbd2 {[%clk 0:15:19]}  Nbd7 {[%clk 0:14:07]} 6. e3 {[%clk 0:15:19]}  h6 {[%clk 0:14:07]} 7. Bh4 {[%clk 0:15:19]}  g5 {[%clk 0:14:07]} 8. Bg3 {[%clk 0:15:19]}  Nh5 {[%clk 0:14:07]} 9. Bd3 {[%clk 0:14:54]}  Nxg3 {[%clk 0:13:53]} 10. hxg3 {[%clk 0:14:54]}  Bg7 {[%clk 0:13:53]} 11. cxd5 {[%clk 0:14:54]}  exd5 {[%clk 0:13:53]} 12. Qc2 {[%clk 0:14:54]}  a5 {[%clk 0:13:58]} 13. Bf5 {[%clk 0:13:01]}  a4 {[%clk 0:08:39]} 14. a3 {[%clk 0:10:41]}  O-O {[%clk 0:07:41]} 15. O-O {[%clk 0:08:16]}  Re8 {[%clk 0:07:41]} 16. Rfe1 {[%clk 0:08:16]}  Nf8 {[%clk 0:07:41]} 17. Bxc8 {[%clk 0:07:45]}  Qxc8 {[%clk 0:04:01]} 18. Nb1 {[%clk 0:07:45]}  Ne6 {[%clk 0:01:23]} 19. Nc3 {[%clk 0:07:41]}  c5 {[%clk 0:01:23]} 20. Nxd5 {[%clk 0:05:48]}  cxd4 {[%clk 0:01:32]} 21. Qf5 {[%clk 0:05:48]}  Qd8 {[%clk 0:01:32]} 22. e4 {[%clk 0:04:18]}  Nf8 {[%clk 0:00:45]} 23. Rac1 {[%clk 0:04:18]}  Ra5 {[%clk 0:00:45]} 24. Rc4 {[%clk 0:02:24]}  Ng6 {[%clk 0:00:15]} 25. Rec1 {[%clk 0:02:24]}  Qd6 {[%clk 0:00:15]} 26. Nxd4 {[%clk 0:02:24]}  Ne5 {[%clk 0:00:15]} 27. Rc8 {[%clk 0:02:24]}  Ra8 {[%clk 0:00:15]} 28. R8c7 {[%clk 0:00:41]}  Kh8 {[%clk 0:00:24]} 29. Rxb7 {[%clk 0:00:41]}  Rf8 {[%clk 0:00:24]} 30. Nb5 {[%clk 0:00:39]}  Qa6 {[%clk 0:00:39]} 31. Rb6 {[%clk 0:00:39]}  Qa5 {[%clk 0:00:39]} 32. Nbc3 {[%clk 0:00:39]}  Ng6 {[%clk 0:00:39]} 33. Rb7 {[%clk 0:00:39]}  Qc5 {[%clk 0:00:39]} 34. Rxf7 {[%clk 0:00:39]}  Rxf7 {[%clk 0:00:39]} 35. Qxf7 {[%clk 0:00:39]}  Ne5 {[%clk 0:00:39]} 36. Qe7 {[%clk 0:00:39]}  Qd4 {[%clk 0:00:39]} 37. Ne3 {[%clk 0:00:39]}  Nd3 {[%clk 0:00:39]} 38. Rf1 {[%clk 0:00:39]}  Qc5 {[%clk 0:00:39]} 39. Qxc5 {[%clk 0:00:39]}  Nxc5 {[%clk 0:00:39]} 40. Ned5 {[%clk 0:00:39]}  Rb8 {[%clk 0:00:39]} 41. Nb4 {[%clk 0:00:39]}  Re8 {[%clk 0:00:39]} 42. Rd1 {[%clk 0:00:39]}  Kg8 {[%clk 0:00:39]} 43. f3 {[%clk 0:00:39]}  Be5 {[%clk 0:00:39]} 44. Kf2 {[%clk 0:00:39]}  Rf8 {[%clk 0:00:39]} 45. Nd3 {[%clk 0:00:39]}  Bxc3 {[%clk 0:00:39]} 46. Nxc5 {[%clk 0:00:39]}  Bxb2 {[%clk 0:00:39]} 47. Nxa4 {[%clk 0:00:39]}  Bxa3 {[%clk 0:00:39]} 48. Rd3 {[%clk 0:00:39]}  Bb4 {[%clk 0:00:39]} 49. Rb3 {[%clk 0:00:39]}  Ba5 {[%clk 0:00:39]} 50. Rb5 {[%clk 0:00:39]}  Ra8 {[%clk 0:00:39]} 51. Nb6 {[%clk 0:00:58]}  Ra6 {[%clk 0:01:12]} 52. Nd5 {[%clk 0:00:58]}  Bd2 {[%clk 0:01:12]} 53. Rb2 {[%clk 0:00:58]}  Bc1 {[%clk 0:01:12]} 54. Rc2 {[%clk 0:00:58]}  Ba3 {[%clk 0:01:12]} 55. f4 {[%clk 0:00:58]}  Kf7 {[%clk 0:01:12]} 56. Kf3 {[%clk 0:00:58]}  Bd6 {[%clk 0:01:12]} 57. e5 {[%clk 0:00:58]} 1-0


[Site "http://www.Chess.com"]